[Event "Austrian Championship 2022"]
[Site "Vienna"]
[Date "2022.08.15"]
[Round "4.6"]
[White "Neumeier, Klaus"]
[Black "Shengelia, David"]
[Result "0-1"]
[ECO "D02"]
[WhiteElo "2257"]
[BlackElo "2462"]
[Annotator "TA"]
[PlyCount "98"]
[EventDate "2022.08.12"]
[EventType "swiss"]
[EventCountry "AUT"]
[SourceTitle "playchess.com"]
[Source "ChessBase"]
[SourceQuality "1"]
[TimeControl "40/5400+30:1800+30"]

{[%evp 9,98,26,40,22,31,28,25,19,22,14,25,8,20,0,15,-4,46,16,27,0,39,0,0,0,0,0,0,0,0,-9,0,0,0,0,0,-36,-35,-47,-32,-33,0,0,0,-8,0,-29,-22,-37,-23,-41,-63,-55,-53,-101,-92,-105,-111,-185,-181,-243,-222,-187,-187,-181,-157,-355,-351,-352,-358,-336,-322,-280,-171,-446,-479,-464,-461,-29975,-29975,-29978,-29979,-29981,-29982,-29983,-29984,-29985,-29984,-29984,-29985,-29987,-29988]} 1. Nf3 {[%emt 0:00:03]} d5 {[%emt 0:01:00]} 2. g3 {[%emt 0:00:16]} Nd7 {[%emt 0:00:12]} 3. d4 {[%emt 0:00:48]} Nb6 {[%emt 0:00:16]} 4. Bg2 {[%emt 0:00:45]} Bf5 {[%emt 0:00:52]} 5. O-O {[%emt 0:00:24]} e6 {[%emt 0:01:07]} 6. b3 {[%emt 0:03:53] D02: 1 d4 d5 2 Nf3 sidelines, including 2...Nf6 3 g3 and 2...Nf6 3 Bf4.} Nf6 {[%emt 0:02:30]} 7. Bb2 {[%emt 0:00:49]} h6 {[%emt 0:01:40]} 8. Nbd2 {[%emt 0:00:40] White has an edge.} Be7 {[%emt 0:04:10]} 9. Ne5 {[%emt 0:04:11]} O-O {[%emt 0:01:44]} 10. Re1 {[%emt 0:20:45]} c6 {[%emt 0:15:35] [#]} 11. Nd3 $146 {[%emt 0:06:24]} ({Predecessor:} 11. e4 dxe4 12. Nxe4 Nxe4 13. Bxe4 Bxe4 14. Rxe4 Nd7 15. Nxd7 Qxd7 16. Qf3 f5 17. Re2 {½-½ (44) Banusz,T (2619)-Westerberg,J (2546) Batumi 2019}) 11... Qc7 {[%emt 0:13:15]} 12. e4 {[%emt 0:07:45]} Bh7 {[%emt 0:03:40]} (12... dxe4 $11 13. Nxe4 a5) 13. Qe2 {[%emt 0:03:17]} Rfd8 {[%emt 0:09:10]} 14. Rac1 {[%emt 0:00:53]} a5 {[%emt 0:07:10]} 15. a4 {[%emt 0:08:01]} Nxe4 {[%emt 0:10:23]} 16. Nxe4 {[%emt 0:00:14]} (16. Bxe4 {keeps more tension.} dxe4 17. Nxe4 Nd7 18. c4) 16... dxe4 {[%emt 0:00:04]} 17. Bxe4 {[%emt 0:00:05]} Bxe4 {[%emt 0:00:05]} 18. Qxe4 {[%emt 0:00:03]} Bf6 {[%emt 0:00:08]} 19. Ne5 {[%emt 0:10:43]} Bxe5 {[%emt 0:00:45]} (19... Nd7 {is interesting.} 20. f4 c5 21. Ba3 Rac8) 20. dxe5 {[%emt 0:03:03]} Nd5 {[%emt 0:00:25]} 21. Ba3 {[%emt 0:01:21]} c5 {[%emt 0:01:15]} 22. Qc4 {[%emt 0:10:28]} b6 {[%emt 0:01:02]} 23. Qe4 {[%emt 0:05:33]} Ne7 {[%emt 0:01:51]} 24. Rcd1 {[%emt 0:00:18]} Rxd1 {[%emt 0:03:11]} 25. Rxd1 {[%emt 0:00:06]} Rd8 {[%emt 0:00:04]} 26. Rxd8+ {[%emt 0:00:33]} Qxd8 $11 {[%emt 0:00:04][%mdl 4096] Endgame KQB-KQN} 27. Bb2 {[%emt 0:02:47]} Qd1+ {[%emt 0:04:54]} 28. Kg2 {[%emt 0:00:05]} Nd5 {[%emt 0:01:03]} 29. c4 {[%emt 0:03:22]} Ne7 {[%emt 0:13:26]} 30. Qa8+ {[%emt 0:04:33]} Kh7 {[%emt 0:00:01] Strongly threatening ...Qc2.} 31. Qe4+ {[%emt 0:00:43] [#]} (31. Qf3 $1 $15 Qc2 32. Qxf7) 31... Ng6 $1 $17 {[%emt 0:00:26]} 32. Qe3 {[%emt 0:01:29]} Qc2 {[%emt 0:00:19] Black is more active.} 33. Qc3 {[%emt 0:00:52]} (33. Ba3 $17) 33... Qe2 $19 {[%emt 0:00:23]} 34. Ba1 {[%emt 0:00:36]} (34. h3 {was worth a try.}) 34... Qe4+ {[%emt 0:01:28]} 35. Qf3 {[%emt 0:00:05]} Qb1 {[%emt 0:00:13]} 36. Qc3 {[%emt 0:00:36]} h5 {[%emt 0:00:38] Hoping for ...h4.} 37. h4 $2 {[%emt 0:00:04] This costs White the game.} (37. Bb2 $17 {keeps fighting.}) 37... Ne7 {[%emt 0:01:14] ...Nf5 is the strong threat.} 38. Bb2 {[%emt 0:01:05]} Nf5 {[%emt 0:00:21] White must now prevent ...Nd4.} 39. Qd2 {[%emt 0:00:46]} Qe4+ {[%emt 0:01:09]} 40. Kg1 {[%emt 0:00:41]} Qf3 {[%emt 0:01:15] Inhibits Qd1.} 41. Qc2 {[%emt 0:05:10]} (41. Bc3 {is the only way for White.}) 41... Kg8 {[%emt 0:01:55] aiming for ...Nd4.} 42. Kh2 {[%emt 0:03:38]} Nd4 {[%emt 0:01:38]} 43. Bxd4 {[%emt 0:01:48] [#]} (43. Qd2 $19 Nxb3 44. Qc2) 43... cxd4 {[%emt 0:00:03][%cal Bc5d4,Bd4d3,Bd3d2][%mdl 32] KQ-KQ. Black mates.} 44. Qd2 {[%emt 0:00:40]} d3 {[%emt 0:00:12]} 45. c5 {[%emt 0:03:10]} bxc5 {[%emt 0:00:11]} 46. Qxa5 {[%emt 0:01:29]} Qxf2+ {[%emt 0:00:06]} 47. Kh3 {[%emt 0:00:18]} Qf1+ {[%emt 0:00:07]} 48. Kh2 {[%emt 0:00:03]} Qe2+ {[%emt 0:00:04]} 49. Kh3 {[%emt 0:00:20]} d2 {[%emt 0:00:11] Weighted Error Value: White=0.35/Black=0.08 (flawless)} 0-1

[Event "Austrian Championship 2022"]
[Site "Vienna"]
[Date "2022.08.15"]
[Round "4.6"]
[White "Spiesberger, Gerhard"]
[Black "Tumanyan, Gor"]
[Result "1/2-1/2"]
[ECO "A04"]
[WhiteElo "1972"]
[BlackElo "1884"]
[Annotator "TA"]
[PlyCount "30"]
[EventDate "2022.08.12"]
[EventType "swiss"]
[EventCountry "AUT"]
[SourceTitle "playchess.com"]
[Source "ChessBase"]
[SourceQuality "1"]
[TimeControl "40/5400+30:1800+30"]

{[%evp 9,30,-14,0,0,0,0,0,0,0,0,1,0,0,-4,0,-4,12,5,28,27,37,28,19]} 1. Nf3 {[%emt 0:00:03]} c5 {[%emt 0:00:09]} 2. g3 {[%emt 0:00:18]} b6 {[%emt 0:01:33]} 3. Bg2 {[%emt 0:03:23]} Bb7 {[%emt 0:00:05]} 4. c3 {[%emt 0:00:41]} e6 {[%emt 0:01:46]} 5. d4 {[%emt 0:00:49]} cxd4 {[%emt 0:06:56]} 6. cxd4 {[%emt 0:01:42] A04: Unusual lines after 1 Nf3 and King's Indian Attack.} Nf6 {[%emt 0:00:21]} 7. O-O {[%emt 0:01:08]} Be7 {[%emt 0:02:41]} 8. Nc3 {[%emt 0:01:28] The position is equal.} O-O {[%emt 0:01:51]} 9. Bg5 {[%emt 0:06:47]} d6 {[%emt 0:04:18] [#]} 10. Bxf6 $146 {[%emt 0:05:47]} ({Predecessor:} 10. Rc1 Nbd7 11. Qb3 Rc8 12. Rfd1 Qc7 13. e4 Rfe8 14. e5 dxe5 15. dxe5 Nxe5 16. Nxe5 Bxg2 17. Nxf7 {1-0 (28) Al Hosani,O (2173)-Buscar,M (2088) Chess.com INT 2021}) 10... Bxf6 {[%emt 0:00:45]} 11. Qd3 {[%emt 0:00:05][%cal Of3g5] [#] Ng5! is the strong threat.} g6 {[%emt 0:28:51]} 12. Rac1 {[%emt 0:08:26]} a6 {[%emt 0:28:07]} 13. Nd2 {[%emt 0:05:29]} Bxg2 {[%emt 0:01:01]} 14. Kxg2 {[%emt 0:00:06]} b5 {[%emt 0:05:54]} 15. Nce4 {[%emt 0:07:20]} Be7 {[%emt 0:03:19] Not much happened in this game.  Weighted Error Value: White=0.03 (flawless) /Black=0.06 (flawless)} 1/2-1/2

[Event "Austrian Championship 2022"]
[Site "Vienna"]
[Date "2022.08.15"]
[Round "4.7"]
[White "Marakovits, Nico"]
[Black "Balinov, Ilia"]
[Result "1-0"]
[ECO "E91"]
[WhiteElo "2259"]
[BlackElo "2419"]
[Annotator "TA"]
[PlyCount "85"]
[EventDate "2022.08.12"]
[EventType "swiss"]
[EventCountry "AUT"]
[SourceTitle "playchess.com"]
[Source "ChessBase"]
[SourceQuality "1"]
[TimeControl "40/5400+30:1800+30"]

{[%evp 20,85,40,41,47,44,60,56,60,50,74,26,37,0,23,24,27,28,51,20,13,4,42,0,0,0,0,0,69,-131,-18,-12,-12,-93,-58,-90,-109,-102,-41,-36,-54,-52,0,-11,0,0,111,91,358,354,355,346,335,50,729,483,866,424,404,344,346,159,939,933,902,901,931,647]} 1. d4 {[%emt 0:00:02]} Nf6 {[%emt 0:00:04]} 2. c4 {[%emt 0:00:11]} g6 {[%emt 0:00:41]} 3. Nc3 {[%emt 0:00:20]} Bg7 {[%emt 0:00:05]} 4. e4 {[%emt 0:00:04]} d6 {[%emt 0:00:04]} 5. Nf3 {[%emt 0:00:06]} O-O {[%emt 0:00:05]} 6. Be2 {[%emt 0:00:04]} c5 {[%emt 0:00:11]} 7. d5 {[%emt 0:01:12]} e6 {[%emt 0:00:05]} 8. O-O {[%emt 0:00:19]} exd5 {[%emt 0:00:03]} 9. exd5 {[%emt 0:00:45]} Bg4 {[%emt 0:00:34]} 10. h3 {[%emt 0:01:36]} Bxf3 {[%emt 0:00:04]} 11. Bxf3 {[%emt 0:00:06]} (11. gxf3 Re8 $11) 11... Nfd7 {[%emt 0:00:05] E91: King's Indian: Classical: 6 Be2, unusual replies including 6...c5 and 6...Bg4.} 12. Qc2 {[%emt 0:03:03]} Ne5 {[%emt 0:01:28]} 13. Be2 {[%emt 0:00:48]} f5 {[%emt 0:00:19] White is slightly better.} 14. f4 {[%emt 0:13:04] [#]} Ng4 $146 {[%emt 0:02:10] [#]} ({Predecessor:} 14... Nf7 15. Bd2 Nd7 16. Rae1 a6 17. a4 Qh4 18. Kh2 Rae8 19. Bf3 Nd8 20. b3 Qf6 21. Rxe8 Rxe8 {1-0 (47) Larson,M (2392)-Hua,L (2310) Saint Louis 2017}) 15. Bxg4 {[%emt 0:09:24]} (15. hxg4 Bd4+ 16. Rf2 Qh4 $17) (15. g3 $1 $16 Bd4+ 16. Kg2 Ne3+ 17. Bxe3 Bxe3 18. Rae1) 15... fxg4 $11 {[%emt 0:03:08]} 16. Qd3 {[%emt 0:05:00]} (16. hxg4 Bd4+ 17. Rf2 Na6 $17) 16... Bd4+ {[%emt 0:14:02]} 17. Kh2 {[%emt 0:08:53]} gxh3 {[%emt 0:00:19]} 18. Qxh3 {[%emt 0:00:28]} Nd7 {[%emt 0:26:54]} 19. Ne4 {[%emt 0:15:47][%cal Bc3e4,Be4g5,Bg5e6][%mdl 32]} Nf6 {[%emt 0:21:11]} 20. Ng5 {[%emt 0:07:54]} h5 {[%emt 0:01:48] Hoping for ...Ng4+.} (20... Qe7 $5 {[%cal Rb7b5]}) 21. Ne6 {[%emt 0:00:58]} Qe7 {[%emt 0:04:35]} 22. Qd3 {[%emt 0:04:00]} (22. Nxf8 Ng4+ 23. Kh1 Rxf8 $15) 22... Ng4+ {[%emt 0:00:19]} 23. Kg3 {[%emt 0:00:05]} Qf6 {[%emt 0:09:46]} (23... Rf5 $11) 24. f5 $2 {[%emt 0:11:18] [#]} (24. Nxf8 $14 {keeps the upper hand.} Kxf8 25. Bd2) 24... Be5+ {[%emt 0:05:25]} ({Black should try} 24... gxf5 $1 $17 {[%cal Od4f2] White must now prevent ...Bf2+!} 25. Nxf8 (25. Kh3 Rf7) 25... Bf2+ 26. Rxf2 h4+ 27. Kf4 Rxf8) 25. Kh3 {[%emt 0:01:43]} gxf5 {[%emt 0:00:35][%cal Of6g6] next ...Qg6! is good for Black.} 26. Bg5 {[%emt 0:00:13]} (26. Nxf8 $11 Rxf8 27. Bf4) 26... Qg6 $17 {[%emt 0:00:18][%cal Of8f6]} 27. Kh4 {[%emt 0:01:48]} ({Wrong is} 27. Nxf8 $2 Qxg5 28. Qf3 (28. Qxf5 $2 Nf2+ 29. Rxf2 Qg3#) 28... Rxf8 $19) 27... Rf7 {[%emt 0:04:39] Threatens to win with ...Kh8.} ({Reject} 27... Bxb2 $6 28. Rab1 Bf6 29. Qxf5 Bxg5+ 30. Qxg5 Qxg5+ 31. Kxg5 Rxf1 32. Rxf1 $11) 28. Rae1 {[%emt 0:02:10]} Kh7 {[%emt 0:02:01]} (28... Bxb2 $17 {Strongly threatening ...Be5.} 29. Nf4 Qh7) 29. g3 $15 {[%emt 0:04:49][%cal Bg2g3,Bg3f4,Bf4f5][%mdl 32]} Rg8 {[%emt 0:00:12]} 30. Kh3 {[%emt 0:00:44]} Nh6 {[%emt 0:01:18]} (30... Kh8 $15) 31. Qf3 {[%emt 0:02:19]} b6 {[%emt 0:00:57]} 32. b3 {[%emt 0:00:11]} f4 {[%emt 0:01:30]} (32... Kh8 $11) 33. gxf4 $16 {[%emt 0:00:42] White is more active.} Bf6 $2 {[%emt 0:00:31][%mdl 8192]} (33... a6 $16 {was worth a try.}) 34. f5 $18 {[%emt 0:01:16] Really sharp!} Qxg5 {[%emt 0:00:11]} 35. Nxg5+ {[%emt 0:00:06]} Rxg5 {[%emt 0:00:01]} 36. Rg1 $2 {[%emt 0:00:57]} (36. Re4 $18) 36... Rxf5 $2 {[%emt 0:00:24][%mdl 8192]} (36... Rg4 $14) 37. Qe4 {[%emt 0:01:11] aiming for Qd3.} Be5 {[%emt 0:00:12]} (37... Kh8 $142 38. Rg6 Bg7 39. Rxd6 Ng4 40. Rd8+ Bf8) 38. Rg5 {[%emt 0:00:36]} (38. Ref1 $142) 38... Kh8 {[%emt 0:00:01]} 39. Rxf5 {[%emt 0:00:26]} Rxf5 {[%emt 0:00:01]} 40. Rg1 {[%emt 0:00:58]} (40. Rh1 $18 {has better winning chances.}) 40... Bg7 $2 {[%emt 0:00:17]} (40... Rf2 $16 41. Rg2 Rf4) 41. Qe8+ {[%emt 0:30:11] White is clearly winning.} Bf8 {[%emt 0:31:02]} 42. Qg6 {[%emt 0:00:55]} a5 {[%emt 0:02:26]} 43. Re1 {[%emt 0:02:58] Weighted Error Value: White=0.70/Black=0.53} 1-0

[Event "Austrian Championship 2022"]
[Site "Vienna"]
[Date "2022.08.15"]
[Round "4.7"]
[White "Kordzadze, Nino"]
[Black "Hengl, Philip"]
[Result "1-0"]
[ECO "A13"]
[WhiteElo "2043"]
[BlackElo "1968"]
[Annotator "TA"]
[PlyCount "75"]
[EventDate "2022.08.12"]
[EventType "swiss"]
[EventCountry "AUT"]
[SourceTitle "playchess.com"]
[Source "ChessBase"]
[SourceQuality "1"]
[TimeControl "40/5400+30:1800+30"]

{[%evp 15,75,10,23,0,8,0,0,0,0,-6,25,25,25,12,19,13,36,40,43,32,35,27,37,10,41,-9,24,0,43,6,17,0,18,0,0,-194,-213,-199,-150,-190,-57,-147,0,0,0,0,25,4,66,33,142,137,496,466,449,453,550,490,482,463,29996,29997]} 1. c4 {[%emt 0:00:03]} e6 {[%emt 0:00:10]} 2. g3 {[%emt 0:00:17]} d5 {[%emt 0:00:11]} 3. Bg2 {[%emt 0:00:27]} Nf6 {[%emt 0:00:54]} 4. Nf3 {[%emt 0:05:34]} Be7 {[%emt 0:00:09]} 5. O-O {[%emt 0:00:18]} O-O {[%emt 0:00:10]} 6. b3 {[%emt 0:01:53]} c6 {[%emt 0:02:24]} 7. Bb2 {[%emt 0:00:45]} b6 {[%emt 0:03:21] is more profitable than 7...Nbd7 at the moment.} 8. Qc2 {[%emt 0:03:48]} Bb7 {[%emt 0:01:29]} 9. d3 {[%emt 0:02:14] A13: English Opening: 1...e6.} c5 {[%emt 0:01:04]} 10. e3 {[%emt 0:05:08]} Nc6 {[%emt 0:01:30]} 11. a3 {[%emt 0:01:56] The position is equal.} Qc7 {[%emt 0:22:04]} 12. Nbd2 {[%emt 0:01:04] [#]} a5 $146 {[%emt 0:08:22]} (12... Rad8 13. Rac1 Rfe8 14. cxd5 Nxd5 15. e4 Nf6 16. d4 Qd7 17. dxc5 Bxc5 18. Bxf6 gxf6) ({Predecessor:} 12... Rad8 13. Rac1 Rfe8 14. cxd5 Nxd5 15. e4 Nf6 16. d4 Qd7 17. dxc5 Bxc5 18. Bxf6 gxf6 {1-0 (60) Malakhatko,V (2540)-Nielsen,R (2340) Runavik 2017}) 13. Rfd1 {[%emt 0:03:20]} Rfd8 {[%emt 0:01:57]} 14. cxd5 {[%emt 0:06:54]} exd5 {[%emt 0:00:15]} 15. d4 {[%emt 0:00:37]} Rac8 {[%emt 0:16:00]} (15... a4 $5 {[%cal Ra4b3]}) 16. Rac1 {[%emt 0:03:07]} Qb8 {[%emt 0:07:23]} 17. Qf5 {[%emt 0:11:18]} g6 {[%emt 0:06:00]} 18. Qb1 {[%emt 0:00:14]} Ne8 {[%emt 0:03:55]} 19. Qa1 {[%emt 0:05:57]} Bf8 {[%emt 0:02:01]} 20. Nf1 {[%emt 0:04:12]} (20. h4 $14) 20... Rc7 {[%emt 0:11:17]} 21. N1d2 {[%emt 0:10:24]} Ng7 {[%emt 0:03:21]} 22. dxc5 {[%emt 0:02:35]} bxc5 {[%emt 0:00:07]} 23. Ne5 {[%emt 0:00:34]} Ne6 {[%emt 0:01:38]} 24. Ng4 {[%emt 0:04:56]} d4 $1 {[%emt 0:01:42]} 25. Nc4 $2 {[%emt 0:00:47]} (25. Nf6+ $11 {and White is okay.} Kh8 26. Be4) 25... Bg7 $19 {[%emt 0:00:43] Threatens to win with ...h5.} 26. h4 {[%emt 0:03:47]} h5 {[%emt 0:00:06]} (26... Re7 $19 27. Qa2 h5) 27. Nh2 $17 {[%emt 0:00:05]} dxe3 {[%emt 0:01:08]} (27... Re7 $19 {...Ne5 is the strong threat.} 28. Bh3 dxe3 29. Bxg7 Rxd1+ 30. Rxd1 Nxg7) 28. fxe3 {[%emt 0:04:01] [#]} ({White should play} 28. Rxd8+ $1 $15 Ncxd8 29. fxe3) 28... Rcd7 {[%emt 0:00:44]} (28... Ncd4 $1 $17 {[%mdl 512]} 29. exd4 Nxd4) 29. Rxd7 $11 {[%emt 0:03:40]} Rxd7 {[%emt 0:00:14]} 30. Nf1 {[%emt 0:00:12]} Bxb2 {[%emt 0:03:05]} 31. Qxb2 {[%emt 0:00:41]} Ng7 {[%emt 0:00:17]} (31... Qc7 $11) 32. Nb6 {[%emt 0:01:06]} (32. Qf6 $5 {[%cal Rg2c6]} Qc7 33. Qf4 $11) 32... Rd6 {[%emt 0:01:40]} ({Better is} 32... Rd8 $1 $14) 33. Nd5 $16 {[%emt 0:00:47] White is more active.} Nf5 $2 {[%emt 0:01:00][%mdl 8192]} (33... Qd8 $16 34. Rxc5 Ne8) 34. Nf6+ $18 {[%emt 0:00:54]} Rxf6 {[%emt 0:00:37]} 35. Qxf6 {[%emt 0:00:14]} Nxg3 {[%emt 0:00:10] [#] aiming for ...Ne2+.} 36. Bd5 {[%emt 0:01:22]} Ne2+ {[%emt 0:00:12]} 37. Kf2 {[%emt 0:00:12]} Nxc1 {[%emt 0:00:41]} (37... Ne5 $18 38. Bxf7+ (38. Kxe2 Bxd5 39. Rxc5 Nd7 $16) 38... Nxf7 39. Qxg6+ Kf8 40. Kxe2 Qe5) 38. Bxf7+ {[%emt 0:00:07] White used his chance.  Weighted Error Value: White=0.25 (precise) /Black=0.65} 1-0

[Event "Austrian Championship 2022"]
[Site "Vienna"]
[Date "2022.08.15"]
[Round "4.8"]
[White "Belke, Frank"]
[Black "Morgunov, Marc"]
[Result "0-1"]
[ECO "E70"]
[WhiteElo "2226"]
[BlackElo "2376"]
[Annotator "TA"]
[PlyCount "64"]
[EventDate "2022.08.12"]
[EventType "swiss"]
[EventCountry "AUT"]
[SourceTitle "playchess.com"]
[Source "ChessBase"]
[SourceQuality "1"]
[TimeControl "40/5400+30:1800+30"]

{[%evp 11,64,40,46,6,26,19,31,0,58,26,34,12,6,0,28,-62,-63,-89,-64,-79,11,-90,-89,-92,-17,-5,-25,-18,-20,-26,-21,-234,-236,-270,-266,-270,-270,-270,-270,-270,-270,-270,-262,-263,-262,-257,-248,-250,-245,-316,-259,-1014,-914,-1321,-1272]} 1. d4 {[%emt 0:00:03]} Nf6 {[%emt 0:00:11]} 2. c4 {[%emt 0:00:05]} g6 {[%emt 0:00:06]} 3. Nc3 {[%emt 0:00:05]} Bg7 {[%emt 0:00:04]} 4. e4 {[%emt 0:00:04]} d6 {[%emt 0:00:04]} 5. Nge2 {[%emt 0:00:04]} O-O {[%emt 0:00:38]} 6. Ng3 {[%emt 0:00:03]} h5 {[%emt 0:00:05]} 7. Bg5 {[%emt 0:00:07] E70: King's Indian: Miscellaneous lines with 4 e4, including 5 Nge2 and 5 Bd3 0-0 6 Nge2.} Nh7 {[%emt 0:00:42]} (7... c5 $5 {[%cal Rc5d4]}) 8. Be3 {[%emt 0:00:06] [#]} a5 $146 {[%emt 0:01:28]} ({Predecessor:} 8... h4 9. Nge2 e5 10. Qd2 Nc6 11. d5 Nb8 12. Nc1 f5 13. f3 a5 14. Nd3 b6 {0-1 (67) Mchedlishvili,M (2618)-Amin,B (2617) Dubai 2021}) 9. Bd3 {[%emt 0:01:58] White is slightly better.} Nc6 {[%emt 0:10:33]} (9... h4 $11) 10. d5 {[%emt 0:02:17]} Ne5 {[%emt 0:01:34]} 11. h3 {[%emt 0:00:21]} e6 {[%emt 0:07:33]} 12. Be2 {[%emt 0:03:26]} f5 {[%emt 0:07:56] Threatens to win with ...f4.} 13. exf5 {[%emt 0:21:19]} (13. Qd2 $11) 13... exf5 $15 {[%emt 0:00:36] White must now prevent ...f4.} 14. Bf4 {[%emt 0:07:26]} Re8 {[%emt 0:14:55]} 15. O-O {[%emt 0:05:18]} Nd7 {[%emt 0:05:40]} ({Black should try} 15... h4 $17 16. Nh1 Bd7) 16. Bxh5 {[%emt 0:13:23]} gxh5 $17 {[%emt 0:00:12]} 17. Nxf5 {[%emt 0:00:02]} Ndf6 {[%emt 0:02:28]} (17... Bxc3 $17 18. bxc3 Ndf6 19. Nh6+ Kf8) 18. Nxg7 $11 {[%emt 0:00:39]} Kxg7 {[%emt 0:00:05][%cal Bg8g7,Bg7h6,Bh6h5,Bh5h4,Bh4g5,Bg5g6][%mdl 32]} 19. Qd4 {[%emt 0:03:20]} Bf5 {[%emt 0:03:06]} 20. f3 {[%emt 0:02:10]} Qd7 {[%emt 0:03:32]} 21. g4 $2 {[%emt 0:08:49] Loses the game.} (21. Rf2 $11 {and White is okay.}) 21... hxg4 $19 {[%emt 0:02:00]} 22. fxg4 {[%emt 0:00:05] [#]} Bxg4 {[%emt 0:00:17][%mdl 512]} 23. Bh6+ {[%emt 0:10:09]} Kxh6 {[%emt 0:03:42]} 24. Rxf6+ {[%emt 0:00:05]} Nxf6 {[%emt 0:00:03]} 25. Qxf6+ {[%emt 0:00:06]} Kh5 {[%emt 0:00:04]} 26. hxg4+ {[%emt 0:01:45]} Qxg4+ {[%emt 0:00:04]} 27. Kf2 {[%emt 0:00:03] Threatening mate with Rh1+.} Qh4+ {[%emt 0:00:03]} 28. Qxh4+ {[%emt 0:00:07]} Kxh4 {[%emt 0:00:02]} 29. Rh1+ {[%emt 0:00:20]} Kg5 {[%emt 0:00:03]} 30. Rh7 {[%emt 0:00:07]} Kg6 {[%emt 0:01:20]} 31. Rxc7 {[%emt 0:01:35] [#]} (31. Rh3) 31... Re5 $1 {[%emt 0:00:12] ( -> ...Rf8+)} 32. Kg3 {[%emt 0:05:16]} Rf8 {[%emt 0:00:26] Weighted Error Value: White=0.90/Black=0.22 (precise)} 0-1